[Event "Titled Tuesday Blitz December 27 Late 2022"]
[White "Moreno Perez, Tobias Sebastian"]
[Black "Shtompel, Yuriy"]
[WhiteFideId "186716"]
[BlackFideId "14168278"]
[WhiteElo "2256"]
[BlackElo "1938"]
[Result "1-0"]
[Round "06"]
[TimeControl "180+2"]
[Date "2022.12.27"]
[WhiteClock "0:00:16"]
[BlackClock "0:00:20"]

1. d4 {[%clk 0:03:00]}  e6 {[%clk 0:02:51]} 2. Bf4 {[%clk 0:02:59]}  Nf6 {[%clk 0:02:50]} 3. e3 {[%clk 0:02:59]}  c5 {[%clk 0:02:47]} 4. Nf3 {[%clk 0:02:58]}  Nc6 {[%clk 0:02:47]} 5. Nbd2 {[%clk 0:02:57]}  d5 {[%clk 0:02:46]} 6. c3 {[%clk 0:02:57]}  Bd6 {[%clk 0:02:41]} 7. Bg3 {[%clk 0:02:57]}  O-O {[%clk 0:02:41]} 8. Bb5 {[%clk 0:02:56]}  a6 {[%clk 0:02:27]} 9. Bxc6 {[%clk 0:02:33]}  bxc6 {[%clk 0:02:28]} 10. Bxd6 {[%clk 0:02:33]}  Qxd6 {[%clk 0:02:28]} 11. dxc5 {[%clk 0:02:33]}  Qxc5 {[%clk 0:02:28]} 12. O-O {[%clk 0:02:34]}  a5 {[%clk 0:02:25]} 13. c4 {[%clk 0:02:34]}  Ba6 {[%clk 0:02:25]} 14. Rc1 {[%clk 0:02:34]}  Qb4 {[%clk 0:02:13]} 15. Qc2 {[%clk 0:02:26]}  Rab8 {[%clk 0:02:02]} 16. b3 {[%clk 0:02:22]}  Rfc8 {[%clk 0:01:19]} 17. Rfd1 {[%clk 0:02:10]}  Nd7 {[%clk 0:01:05]} 18. c5 {[%clk 0:02:04]}  Qg4 {[%clk 0:00:39]} 19. h3 {[%clk 0:02:02]}  Qg6 {[%clk 0:00:36]} 20. Qxg6 {[%clk 0:01:51]}  hxg6 {[%clk 0:00:37]} 21. e4 {[%clk 0:01:09]}  Rb5 {[%clk 0:00:29]} 22. exd5 {[%clk 0:01:02]}  exd5 {[%clk 0:00:28]} 23. Nd4 {[%clk 0:00:54]}  Rxc5 {[%clk 0:00:22]} 24. Rxc5 {[%clk 0:00:54]}  Nxc5 {[%clk 0:00:22]} 25. Rc1 {[%clk 0:00:55]}  Ne6 {[%clk 0:00:18]} 26. Nxc6 {[%clk 0:00:55]}  Kf8 {[%clk 0:00:14]} 27. Nf3 {[%clk 0:00:38]}  f6 {[%clk 0:00:11]} 28. Rc2 {[%clk 0:00:34]}  Bd3 {[%clk 0:00:05]} 29. Rd2 {[%clk 0:00:31]}  Be4 {[%clk 0:00:04]} 30. Ncd4 {[%clk 0:00:30]}  Rc1+ {[%clk 0:00:03]} 31. Kh2 {[%clk 0:00:30]}  Nf4 {[%clk 0:00:04]} 32. a3 {[%clk 0:00:20]}  Nd3 {[%clk 0:00:03]} 33. b4 {[%clk 0:00:15]}  axb4 {[%clk 0:00:03]} 34. axb4 {[%clk 0:00:15]}  Rb1 {[%clk 0:00:04]} 35. b5 {[%clk 0:00:15]}  Kf7 {[%clk 0:00:03]} 36. Ra2 {[%clk 0:00:15]}  Nc5 {[%clk 0:00:04]} 37. Ra7+ {[%clk 0:00:15]}  Kf8 {[%clk 0:00:04]} 38. Rc7 {[%clk 0:00:14]}  Na4 {[%clk 0:00:03]} 39. Ne6+ {[%clk 0:00:13]}  Kg8 {[%clk 0:00:03]} 40. Rxg7+ {[%clk 0:00:12]}  Kh8 {[%clk 0:00:04]} 41. Nfd4 {[%clk 0:00:10]}  Nc3 {[%clk 0:00:03]} 42. f3 {[%clk 0:00:10]}  Bf5 {[%clk 0:00:02]} 43. Rb7 {[%clk 0:00:06]}  Bxe6 {[%clk 0:00:02]} 44. Nxe6 {[%clk 0:00:06]}  Rxb5 {[%clk 0:00:03]} 45. Rxb5 {[%clk 0:00:01]}  Nxb5 {[%clk 0:00:03]} 46. Nf4 {[%clk 0:00:02]}  d4 {[%clk 0:00:03]} 47. Nxg6+ {[%clk 0:00:02]}  Kg7 {[%clk 0:00:04]} 48. Nf4 {[%clk 0:00:03]}  Nd6 {[%clk 0:00:04]} 49. Nd3 {[%clk 0:00:03]}  f5 {[%clk 0:00:04]} 50. Kg3 {[%clk 0:00:03]}  Kf6 {[%clk 0:00:04]} 51. Kf4 {[%clk 0:00:04]}  Ne8 {[%clk 0:00:03]} 52. g4 {[%clk 0:00:04]}  Ng7 {[%clk 0:00:03]} 53. Nc5 {[%clk 0:00:02]}  Ne6+ {[%clk 0:00:01]} 54. Nxe6 {[%clk 0:00:02]}  d3 {[%clk 0:00:01]} 55. Ke3 {[%clk 0:00:02]}  d2 {[%clk 0:00:02]} 56. Kxd2 {[%clk 0:00:02]}  Kxe6 {[%clk 0:00:03]} 57. Ke3 {[%clk 0:00:02]}  fxg4 {[%clk 0:00:04]} 58. fxg4 {[%clk 0:00:02]}  Kf6 {[%clk 0:00:05]} 59. Kf3 {[%clk 0:00:03]}  Kg6 {[%clk 0:00:06]} 60. Kg3 {[%clk 0:00:04]}  Kg5 {[%clk 0:00:06]} 61. h4+ {[%clk 0:00:05]}  Kh6 {[%clk 0:00:07]} 62. h5 {[%clk 0:00:06]}  Kg5 {[%clk 0:00:08]} 63. Kh3 {[%clk 0:00:07]}  Kh6 {[%clk 0:00:09]} 64. Kg3 {[%clk 0:00:08]}  Kg5 {[%clk 0:00:09]} 65. Kh3 {[%clk 0:00:08]}  Kh6 {[%clk 0:00:10]} 66. Kh4 {[%clk 0:00:09]}  Kg7 {[%clk 0:00:11]} 67. g5 {[%clk 0:00:10]}  Kh7 {[%clk 0:00:12]} 68. Kg4 {[%clk 0:00:11]}  Kg7 {[%clk 0:00:12]} 69. h6+ {[%clk 0:00:11]}  Kh7 {[%clk 0:00:13]} 70. Kh4 {[%clk 0:00:12]}  Kg6 {[%clk 0:00:14]} 71. Kg4 {[%clk 0:00:13]}  Kh7 {[%clk 0:00:15]} 72. Kh5 {[%clk 0:00:13]}  Kg8 {[%clk 0:00:15]} 73. g6 {[%clk 0:00:14]}  Kh8 {[%clk 0:00:16]} 74. Kg5 {[%clk 0:00:14]}  Kg8 {[%clk 0:00:17]} 75. Kf6 {[%clk 0:00:15]}  Kh8 {[%clk 0:00:18]} 76. g7+ {[%clk 0:00:13]}  Kg8 {[%clk 0:00:18]} 77. h7+ {[%clk 0:00:14]}  Kxh7 {[%clk 0:00:18]} 78. Kf7 {[%clk 0:00:14]}  Kh6 {[%clk 0:00:19]} 79. g8=Q {[%clk 0:00:15]}  Kh5 {[%clk 0:00:20]} 80. Qg3 {[%clk 0:00:15]}  Kh6 {[%clk 0:00:20]} 81. Qg6# {[%clk 0:00:16]} 1-0


[Site "https://www.chess.com"]

[Event "Titled Tuesday Blitz December 27 Late 2022"]
[White "Moskvin, Anatoly"]
[Black "Araujo Sanchez, Josue"]
[WhiteFideId "24199990"]
[BlackFideId "6416896"]
[WhiteElo "2189"]
[BlackElo "2303"]
[Result "0-1"]
[Round "06"]
[TimeControl "180+2"]
[Date "2022.12.27"]
[WhiteClock "0:00:15"]
[BlackClock "0:01:20"]

1. e4 {[%clk 0:03:00]}  c5 {[%clk 0:02:57]} 2. Nf3 {[%clk 0:03:01]}  Nc6 {[%clk 0:02:58]} 3. Bb5 {[%clk 0:03:00]}  e6 {[%clk 0:02:57]} 4. O-O {[%clk 0:03:01]}  Nge7 {[%clk 0:02:58]} 5. Re1 {[%clk 0:03:01]}  a6 {[%clk 0:02:57]} 6. Bf1 {[%clk 0:03:00]}  Qc7 {[%clk 0:02:57]} 7. c3 {[%clk 0:03:01]}  d5 {[%clk 0:02:57]} 8. exd5 {[%clk 0:03:00]}  Nxd5 {[%clk 0:02:58]} 9. d4 {[%clk 0:02:56]}  cxd4 {[%clk 0:02:58]} 10. Nxd4 {[%clk 0:02:57]}  Be7 {[%clk 0:02:55]} 11. Nxc6 {[%clk 0:02:44]}  Qxc6 {[%clk 0:02:56]} 12. Nd2 {[%clk 0:02:41]}  O-O {[%clk 0:02:56]} 13. Nf3 {[%clk 0:02:42]}  b5 {[%clk 0:02:55]} 14. a4 {[%clk 0:02:39]}  Bb7 {[%clk 0:02:54]} 15. axb5 {[%clk 0:02:34]}  axb5 {[%clk 0:02:54]} 16. Rxa8 {[%clk 0:02:34]}  Bxa8 {[%clk 0:02:55]} 17. Nd4 {[%clk 0:02:34]}  Qb7 {[%clk 0:02:51]} 18. Nxb5 {[%clk 0:02:34]}  Rd8 {[%clk 0:02:48]} 19. Qg4 {[%clk 0:02:26]}  Nf6 {[%clk 0:02:48]} 20. Qg3 {[%clk 0:02:22]}  Ne4 {[%clk 0:02:47]} 21. Qf4 {[%clk 0:02:16]}  Ng5 {[%clk 0:02:19]} 22. f3 {[%clk 0:01:42]}  Rd5 {[%clk 0:02:11]} 23. Nd4 {[%clk 0:00:48]}  Bd6 {[%clk 0:02:03]} 24. Qh4 {[%clk 0:00:46]}  h6 {[%clk 0:01:55]} 25. Bf4 {[%clk 0:00:38]}  e5 {[%clk 0:01:38]} 26. Bxg5 {[%clk 0:00:37]}  hxg5 {[%clk 0:01:38]} 27. Qxg5 {[%clk 0:00:34]}  exd4 {[%clk 0:01:37]} 28. Re8+ {[%clk 0:00:32]}  Bf8 {[%clk 0:01:37]} 29. Qh4 {[%clk 0:00:25]}  dxc3 {[%clk 0:01:32]} 30. bxc3 {[%clk 0:00:25]}  Rd1 {[%clk 0:01:28]} 31. Qf2 {[%clk 0:00:20]}  Qc6 {[%clk 0:01:25]} 32. Rb8 {[%clk 0:00:17]}  Bb7 {[%clk 0:01:24]} 33. h3 {[%clk 0:00:17]}  Ba6 {[%clk 0:01:24]} 34. Kh2 {[%clk 0:00:15]}  Qd6+ {[%clk 0:01:20]} 0-1


[Site "https://www.chess.com"]

[Event "Titled Tuesday Blitz December 27 Late 2022"]
[White "Mushini Ajay"]
[Black "Clawitter, Craig"]
[WhiteFideId "35066188"]
[BlackFideId "2023105"]
[WhiteElo "2310"]
[BlackElo "2050"]
[Result "1-0"]
[Round "06"]
[TimeControl "180+2"]
[Date "2022.12.27"]
[WhiteClock "0:00:18"]
[BlackClock "0:00:01"]

1. e4 {[%clk 0:02:55]}  e6 {[%clk 0:03:00]} 2. d4 {[%clk 0:02:55]}  d5 {[%clk 0:03:00]} 3. Nc3 {[%clk 0:02:54]}  Bb4 {[%clk 0:02:59]} 4. e5 {[%clk 0:02:54]}  c5 {[%clk 0:02:59]} 5. Bd2 {[%clk 0:02:54]}  Nh6 {[%clk 0:02:58]} 6. Bxh6 {[%clk 0:02:51]}  gxh6 {[%clk 0:02:57]} 7. a3 {[%clk 0:02:50]}  Ba5 {[%clk 0:02:57]} 8. b4 {[%clk 0:02:36]}  cxd4 {[%clk 0:02:37]} 9. Nb5 {[%clk 0:02:26]}  Bc7 {[%clk 0:02:33]} 10. f4 {[%clk 0:02:18]}  Bd7 {[%clk 0:02:20]} 11. Nf3 {[%clk 0:02:12]}  Bxb5 {[%clk 0:02:11]} 12. Bxb5+ {[%clk 0:02:13]}  Nd7 {[%clk 0:02:11]} 13. Qxd4 {[%clk 0:02:08]}  O-O {[%clk 0:02:00]} 14. f5 {[%clk 0:02:02]}  Kh8 {[%clk 0:01:27]} 15. f6 {[%clk 0:01:52]}  Rg8 {[%clk 0:01:21]} 16. Bd3 {[%clk 0:01:36]}  Rxg2 {[%clk 0:01:05]} 17. O-O-O {[%clk 0:01:25]}  Bb6 {[%clk 0:00:43]} 18. Qf4 {[%clk 0:01:19]}  Qf8 {[%clk 0:00:27]} 19. h4 {[%clk 0:01:18]}  a5 {[%clk 0:00:26]} 20. Ng5 {[%clk 0:01:05]}  axb4 {[%clk 0:00:13]} 21. Nxh7 {[%clk 0:01:05]}  Qc5 {[%clk 0:00:10]} 22. Qxh6 {[%clk 0:00:46]}  Qe3+ {[%clk 0:00:09]} 23. Qxe3 {[%clk 0:00:45]}  Bxe3+ {[%clk 0:00:10]} 24. Kb2 {[%clk 0:00:45]}  bxa3+ {[%clk 0:00:10]} 25. Ka2 {[%clk 0:00:44]}  Nc5 {[%clk 0:00:10]} 26. Ng5 {[%clk 0:00:38]}  Nxd3 {[%clk 0:00:10]} 27. Rxd3 {[%clk 0:00:31]}  Rxc2+ {[%clk 0:00:10]} 28. Kb3 {[%clk 0:00:31]}  Rb2+ {[%clk 0:00:08]} 29. Kc3 {[%clk 0:00:31]}  Bxg5 {[%clk 0:00:07]} 30. hxg5+ {[%clk 0:00:31]}  Kg8 {[%clk 0:00:07]} 31. Rdh3 {[%clk 0:00:29]}  Rc8+ {[%clk 0:00:07]} 32. Kd3 {[%clk 0:00:17]}  Rb3+ {[%clk 0:00:06]} 33. Kd2 {[%clk 0:00:17]}  Rxh3 {[%clk 0:00:01]} 34. Rxh3 {[%clk 0:00:18]} 1-0


[Site "https://www.chess.com"]

[Event "Titled Tuesday Blitz December 27 Late 2022"]
[White "Novikov, Evgenij"]
[Black "Martinez Reyes, Pedro Ramon"]
[WhiteFideId "4125380"]
[BlackFideId "3901807"]
[WhiteElo "2276"]
[BlackElo "2376"]
[Result "0-1"]
[Round "06"]
[TimeControl "180+2"]
[Date "2022.12.27"]
[WhiteClock "0:00:02"]
[BlackClock "0:01:34"]

1. e4 {[%clk 0:02:59]}  Nf6 {[%clk 0:02:55]} 2. e5 {[%clk 0:02:58]}  Ng8 {[%clk 0:02:55]} 3. Nf3 {[%clk 0:02:47]}  d6 {[%clk 0:02:53]} 4. Bc4 {[%clk 0:02:43]}  d5 {[%clk 0:02:46]} 5. Be2 {[%clk 0:02:42]}  Bg4 {[%clk 0:02:44]} 6. d4 {[%clk 0:02:41]}  e6 {[%clk 0:02:43]} 7. h3 {[%clk 0:02:38]}  Bxf3 {[%clk 0:02:43]} 8. Bxf3 {[%clk 0:02:39]}  c5 {[%clk 0:02:44]} 9. c3 {[%clk 0:02:32]}  cxd4 {[%clk 0:02:44]} 10. cxd4 {[%clk 0:02:29]}  Nc6 {[%clk 0:02:45]} 11. O-O {[%clk 0:02:24]}  Qb6 {[%clk 0:02:45]} 12. Be3 {[%clk 0:02:24]}  Nge7 {[%clk 0:02:42]} 13. Nc3 {[%clk 0:02:18]}  Nf5 {[%clk 0:02:42]} 14. Na4 {[%clk 0:02:11]}  Qd8 {[%clk 0:02:28]} 15. Rc1 {[%clk 0:01:56]}  Be7 {[%clk 0:02:20]} 16. Nc5 {[%clk 0:01:41]}  Bxc5 {[%clk 0:02:19]} 17. Rxc5 {[%clk 0:01:42]}  O-O {[%clk 0:02:17]} 18. Qd3 {[%clk 0:01:32]}  Rc8 {[%clk 0:02:17]} 19. Rfc1 {[%clk 0:01:31]}  Qb6 {[%clk 0:02:16]} 20. b3 {[%clk 0:01:14]}  Nxe3 {[%clk 0:02:16]} 21. Qxe3 {[%clk 0:01:03]}  Qb4 {[%clk 0:02:12]} 22. Be2 {[%clk 0:00:53]}  h6 {[%clk 0:01:45]} 23. Bb5 {[%clk 0:00:39]}  Ne7 {[%clk 0:01:44]} 24. Rxc8 {[%clk 0:00:37]}  Rxc8 {[%clk 0:01:45]} 25. Rxc8+ {[%clk 0:00:36]}  Nxc8 {[%clk 0:01:46]} 26. Bd3 {[%clk 0:00:30]}  Ne7 {[%clk 0:01:41]} 27. Bc2 {[%clk 0:00:19]}  Nc6 {[%clk 0:01:40]} 28. Qd3 {[%clk 0:00:19]}  g6 {[%clk 0:01:40]} 29. Qe3 {[%clk 0:00:16]}  Qxd4 {[%clk 0:01:35]} 30. Qxh6 {[%clk 0:00:16]}  Qa1+ {[%clk 0:01:36]} 31. Kh2 {[%clk 0:00:16]}  Qxe5+ {[%clk 0:01:37]} 32. Kg1 {[%clk 0:00:12]}  Nd4 {[%clk 0:01:37]} 33. Bd3 {[%clk 0:00:08]}  Qe1+ {[%clk 0:01:33]} 34. Kh2 {[%clk 0:00:08]}  Qxf2 {[%clk 0:01:34]} 35. Bxg6 {[%clk 0:00:02]}  Nf3+ {[%clk 0:01:34]} 36. Kh1 {[%clk 0:00:02]}  Qg1# {[%clk 0:01:34]} 0-1


[Site "https://www.chess.com"]

[Event "Titled Tuesday Blitz December 27 Late 2022"]
[White "Omariev, Maksim"]
[Black "Dias, Joao Batista"]
[WhiteFideId "4193423"]
[BlackFideId "2108240"]
[WhiteElo "2304"]
[BlackElo "1796"]
[Result "1-0"]
[Round "06"]
[TimeControl "180+2"]
[Date "2022.12.27"]
[WhiteClock "0:00:08"]
[BlackClock "0:00:01"]

1. h4 {[%clk 0:03:00]}  e5 {[%clk 0:02:51]} 2. h5 {[%clk 0:03:01]}  h6 {[%clk 0:02:51]} 3. c3 {[%clk 0:02:59]}  Nf6 {[%clk 0:02:50]} 4. d4 {[%clk 0:03:00]}  exd4 {[%clk 0:02:41]} 5. cxd4 {[%clk 0:03:01]}  d5 {[%clk 0:02:41]} 6. e3 {[%clk 0:02:55]}  Bd6 {[%clk 0:02:40]} 7. Be2 {[%clk 0:02:54]}  c6 {[%clk 0:02:40]} 8. Nc3 {[%clk 0:02:53]}  O-O {[%clk 0:02:40]} 9. Nf3 {[%clk 0:02:52]}  Re8 {[%clk 0:02:40]} 10. Qc2 {[%clk 0:02:48]}  Na6 {[%clk 0:02:38]} 11. a3 {[%clk 0:02:43]}  Nc7 {[%clk 0:02:37]} 12. b4 {[%clk 0:02:40]}  Bg4 {[%clk 0:02:37]} 13. Nh4 {[%clk 0:02:26]}  Bxe2 {[%clk 0:02:34]} 14. Qxe2 {[%clk 0:02:15]}  Qd7 {[%clk 0:02:34]} 15. Qf3 {[%clk 0:02:12]}  Ne4 {[%clk 0:02:29]} 16. Bb2 {[%clk 0:02:04]}  Nxc3 {[%clk 0:02:23]} 17. Bxc3 {[%clk 0:02:03]}  Re4 {[%clk 0:02:23]} 18. Nf5 {[%clk 0:02:01]}  Rae8 {[%clk 0:02:12]} 19. Kf1 {[%clk 0:01:46]}  Bf8 {[%clk 0:02:06]} 20. Rh3 {[%clk 0:01:40]}  Ne6 {[%clk 0:02:03]} 21. Rh4 {[%clk 0:00:46]}  Ng5 {[%clk 0:02:00]} 22. Rxe4 {[%clk 0:00:46]}  Nxf3 {[%clk 0:01:56]} 23. Rxe8 {[%clk 0:00:47]}  Qxe8 {[%clk 0:01:56]} 24. gxf3 {[%clk 0:00:47]}  Qe6 {[%clk 0:01:54]} 25. Ng3 {[%clk 0:00:44]}  Qh3+ {[%clk 0:01:50]} 26. Ke2 {[%clk 0:00:44]}  Bd6 {[%clk 0:01:43]} 27. Rh1 {[%clk 0:00:44]}  Qg2 {[%clk 0:01:40]} 28. f4 {[%clk 0:00:45]}  a5 {[%clk 0:01:33]} 29. bxa5 {[%clk 0:00:43]}  Bxa3 {[%clk 0:01:33]} 30. Rb1 {[%clk 0:00:44]}  Qh3 {[%clk 0:01:15]} 31. Rxb7 {[%clk 0:00:44]}  Qg4+ {[%clk 0:01:14]} 32. Ke1 {[%clk 0:00:35]}  Qc8 {[%clk 0:01:11]} 33. a6 {[%clk 0:00:34]}  Kh7 {[%clk 0:01:06]} 34. Ba5 {[%clk 0:00:22]}  c5 {[%clk 0:01:02]} 35. dxc5 {[%clk 0:00:13]}  Bxc5 {[%clk 0:01:01]} 36. Bc7 {[%clk 0:00:08]}  d4 {[%clk 0:00:59]} 37. exd4 {[%clk 0:00:03]}  Bxd4 {[%clk 0:00:59]} 38. Ne2 {[%clk 0:00:02]}  Bc5 {[%clk 0:00:56]} 39. Be5 {[%clk 0:00:02]}  Qc6 {[%clk 0:00:51]} 40. Rc7 {[%clk 0:00:02]}  Qh1+ {[%clk 0:00:47]} 41. Kd2 {[%clk 0:00:02]}  Bb6 {[%clk 0:00:45]} 42. Rb7 {[%clk 0:00:02]}  Qd5+ {[%clk 0:00:44]} 43. Ke1 {[%clk 0:00:02]}  Ba5+ {[%clk 0:00:42]} 44. Kf1 {[%clk 0:00:02]}  Qh1+ {[%clk 0:00:41]} 45. Ng1 {[%clk 0:00:03]}  Qd5 {[%clk 0:00:37]} 46. Ne2 {[%clk 0:00:02]}  Bd2 {[%clk 0:00:35]} 47. Ng3 {[%clk 0:00:03]}  Qc4+ {[%clk 0:00:31]} 48. Kg2 {[%clk 0:00:03]}  Qxa6 {[%clk 0:00:31]} 49. Rxf7 {[%clk 0:00:02]}  Qc6+ {[%clk 0:00:30]} 50. Kh2 {[%clk 0:00:02]}  Qf3 {[%clk 0:00:19]} 51. Rxg7+ {[%clk 0:00:03]}  Kh8 {[%clk 0:00:19]} 52. Rg6+ {[%clk 0:00:03]}  Kh7 {[%clk 0:00:19]} 53. Rg7+ {[%clk 0:00:02]}  Kh8 {[%clk 0:00:19]} 54. Nf5 {[%clk 0:00:02]}  Qxh5+ {[%clk 0:00:16]} 55. Kg3 {[%clk 0:00:02]}  Qxf5 {[%clk 0:00:15]} 56. Rg5+ {[%clk 0:00:02]}  Qxe5 {[%clk 0:00:14]} 57. Rxe5 {[%clk 0:00:03]}  Kg7 {[%clk 0:00:13]} 58. Re6 {[%clk 0:00:03]}  Bc3 {[%clk 0:00:10]} 59. Kg4 {[%clk 0:00:03]}  Bd2 {[%clk 0:00:09]} 60. f3 {[%clk 0:00:03]}  Bc3 {[%clk 0:00:08]} 61. f5 {[%clk 0:00:02]}  Bb2 {[%clk 0:00:07]} 62. Rg6+ {[%clk 0:00:02]}  Kh7 {[%clk 0:00:07]} 63. f4 {[%clk 0:00:03]}  Bc3 {[%clk 0:00:06]} 64. Kh5 {[%clk 0:00:03]}  Bd4 {[%clk 0:00:06]} 65. Rxh6+ {[%clk 0:00:04]}  Kg7 {[%clk 0:00:05]} 66. Rg6+ {[%clk 0:00:05]}  Kf7 {[%clk 0:00:06]} 67. Kg4 {[%clk 0:00:05]}  Bh8 {[%clk 0:00:05]} 68. Re6 {[%clk 0:00:06]}  Bc3 {[%clk 0:00:05]} 69. Kg5 {[%clk 0:00:07]}  Bb2 {[%clk 0:00:05]} 70. Rb6 {[%clk 0:00:07]}  Bc3 {[%clk 0:00:05]} 71. Rb7+ {[%clk 0:00:07]}  Kf8 {[%clk 0:00:04]} 72. Kg6 {[%clk 0:00:08]}  Bd4 {[%clk 0:00:01]} 73. f6 {[%clk 0:00:08]} 1-0


[Site "https://www.chess.com"]

[Event "Titled Tuesday Blitz December 27 Late 2022"]
[White "Osinenko, Anton"]
[Black "Fernandez Guillen, Ernesto J."]
[WhiteFideId "4158970"]
[BlackFideId "3512428"]
[WhiteElo "2203"]
[BlackElo "2477"]
[Result "0-1"]
[Round "06"]
[TimeControl "180+2"]
[Date "2022.12.27"]
[WhiteClock "0:00:02"]
[BlackClock "0:00:17"]

1. e4 {[%clk 0:02:56]}  e5 {[%clk 0:03:00]} 2. Nf3 {[%clk 0:02:49]}  Nc6 {[%clk 0:03:01]} 3. c3 {[%clk 0:02:50]}  g6 {[%clk 0:03:01]} 4. d4 {[%clk 0:02:49]}  exd4 {[%clk 0:03:01]} 5. Nxd4 {[%clk 0:02:49]}  Bg7 {[%clk 0:03:02]} 6. Nxc6 {[%clk 0:02:49]}  bxc6 {[%clk 0:03:03]} 7. h4 {[%clk 0:02:46]}  Ne7 {[%clk 0:03:03]} 8. h5 {[%clk 0:02:46]}  d5 {[%clk 0:03:04]} 9. h6 {[%clk 0:02:40]}  Bf6 {[%clk 0:03:03]} 10. Nd2 {[%clk 0:02:40]}  O-O {[%clk 0:03:03]} 11. Bd3 {[%clk 0:02:34]}  Re8 {[%clk 0:03:01]} 12. Qc2 {[%clk 0:02:23]}  c5 {[%clk 0:02:57]} 13. O-O {[%clk 0:02:19]}  c4 {[%clk 0:02:35]} 14. Be2 {[%clk 0:02:13]}  c6 {[%clk 0:02:35]} 15. f4 {[%clk 0:01:57]}  Rb8 {[%clk 0:02:06]} 16. e5 {[%clk 0:01:52]}  Nf5 {[%clk 0:01:36]} 17. Nf3 {[%clk 0:01:47]}  Qb6+ {[%clk 0:01:34]} 18. Kh2 {[%clk 0:01:46]}  Be7 {[%clk 0:01:30]} 19. Nd4 {[%clk 0:01:23]}  Nxd4 {[%clk 0:00:54]} 20. cxd4 {[%clk 0:01:24]}  Qxd4 {[%clk 0:00:53]} 21. Qc3 {[%clk 0:01:08]}  Qxc3 {[%clk 0:00:51]} 22. bxc3 {[%clk 0:01:09]}  Bc5 {[%clk 0:00:49]} 23. Kg3 {[%clk 0:00:30]}  Bf5 {[%clk 0:00:46]} 24. Bg4 {[%clk 0:00:29]}  Bxg4 {[%clk 0:00:45]} 25. Kxg4 {[%clk 0:00:30]}  f5+ {[%clk 0:00:43]} 26. exf6 {[%clk 0:00:27]}  Kf7 {[%clk 0:00:44]} 27. Kg5 {[%clk 0:00:26]}  Re2 {[%clk 0:00:43]} 28. g3 {[%clk 0:00:23]}  d4 {[%clk 0:00:39]} 29. Rd1 {[%clk 0:00:11]}  d3 {[%clk 0:00:39]} 30. a4 {[%clk 0:00:11]}  Rb3 {[%clk 0:00:31]} 31. a5 {[%clk 0:00:07]}  Rxc3 {[%clk 0:00:30]} 32. Rb1 {[%clk 0:00:01]}  Ke6 {[%clk 0:00:19]} 33. Rb7 {[%clk 0:00:01]}  Rh2 {[%clk 0:00:19]} 34. g4 {[%clk 0:00:01]}  Rxc1 {[%clk 0:00:17]} 35. Re1+ {[%clk 0:00:02]}  Rxe1 {[%clk 0:00:17]} 0-1


[Site "https://www.chess.com"]

[Event "Titled Tuesday Blitz December 27 Late 2022"]
[White "Ozdemir, Serhan Berat"]
[Black "Orzech, Dominik"]
[WhiteFideId "6374611"]
[BlackFideId "1115065"]
[WhiteElo "2223"]
[BlackElo "2308"]
[Result "1-0"]
[Round "06"]
[TimeControl "180+2"]
[Date "2022.12.27"]
[WhiteClock "0:00:13"]
[BlackClock "0:00:40"]

1. e4 {[%clk 0:02:59]}  c5 {[%clk 0:02:47]} 2. Nf3 {[%clk 0:02:58]}  Nc6 {[%clk 0:02:46]} 3. Bb5 {[%clk 0:02:58]}  g6 {[%clk 0:02:43]} 4. Bxc6 {[%clk 0:02:57]}  dxc6 {[%clk 0:02:27]} 5. d3 {[%clk 0:02:57]}  Bg7 {[%clk 0:02:19]} 6. h3 {[%clk 0:02:58]}  Nf6 {[%clk 0:02:17]} 7. Nc3 {[%clk 0:02:58]}  Nd7 {[%clk 0:02:06]} 8. Be3 {[%clk 0:02:56]}  e5 {[%clk 0:02:06]} 9. Qd2 {[%clk 0:02:53]}  Qe7 {[%clk 0:01:59]} 10. O-O {[%clk 0:02:40]}  O-O {[%clk 0:01:52]} 11. Bh6 {[%clk 0:02:11]}  Re8 {[%clk 0:01:52]} 12. Nh2 {[%clk 0:02:07]}  Bh8 {[%clk 0:01:50]} 13. f4 {[%clk 0:02:03]}  exf4 {[%clk 0:01:43]} 14. Bxf4 {[%clk 0:02:04]}  Ne5 {[%clk 0:01:42]} 15. Rae1 {[%clk 0:01:54]}  b6 {[%clk 0:01:34]} 16. Nf3 {[%clk 0:01:40]}  Bd7 {[%clk 0:01:32]} 17. Qf2 {[%clk 0:00:53]}  Nxf3+ {[%clk 0:01:17]} 18. Qxf3 {[%clk 0:00:53]}  Rad8 {[%clk 0:01:15]} 19. e5 {[%clk 0:00:43]}  Be6 {[%clk 0:01:15]} 20. Qg3 {[%clk 0:00:40]}  Rd4 {[%clk 0:01:09]} 21. Bg5 {[%clk 0:00:19]}  Qc7 {[%clk 0:01:03]} 22. Ne4 {[%clk 0:00:17]}  c4 {[%clk 0:00:54]} 23. Nf6+ {[%clk 0:00:14]}  Bxf6 {[%clk 0:00:47]} 24. Bxf6 {[%clk 0:00:14]}  c5 {[%clk 0:00:40]} 25. Qe3 {[%clk 0:00:13]} 1-0


[Site "https://www.chess.com"]

[Event "Titled Tuesday Blitz December 27 Late 2022"]
[White "Remolar Gallen, Jose"]
[Black "Makarian, Rudik"]
[WhiteFideId "2215187"]
[BlackFideId "44105681"]
[WhiteElo "2285"]
[BlackElo "2545"]
[Result "0-1"]
[Round "06"]
[TimeControl "180+2"]
[Date "2022.12.27"]
[WhiteClock "0:00:01"]
[BlackClock "0:00:09"]

1. d4 {[%clk 0:03:00]}  Nf6 {[%clk 0:02:38]} 2. c4 {[%clk 0:03:00]}  g6 {[%clk 0:02:38]} 3. Nc3 {[%clk 0:03:01]}  Bg7 {[%clk 0:02:38]} 4. e4 {[%clk 0:03:01]}  d6 {[%clk 0:02:39]} 5. Be2 {[%clk 0:03:01]}  O-O {[%clk 0:02:40]} 6. Be3 {[%clk 0:03:02]}  Nc6 {[%clk 0:02:41]} 7. h4 {[%clk 0:03:02]}  e5 {[%clk 0:02:38]} 8. d5 {[%clk 0:03:01]}  Nd4 {[%clk 0:02:18]} 9. Bxd4 {[%clk 0:02:38]}  exd4 {[%clk 0:02:17]} 10. Qxd4 {[%clk 0:02:39]}  Re8 {[%clk 0:02:15]} 11. Qd3 {[%clk 0:02:38]}  Nd7 {[%clk 0:02:13]} 12. f3 {[%clk 0:02:21]}  Nc5 {[%clk 0:02:12]} 13. Qc2 {[%clk 0:02:20]}  f5 {[%clk 0:02:12]} 14. h5 {[%clk 0:02:18]}  fxe4 {[%clk 0:02:12]} 15. hxg6 {[%clk 0:02:18]}  Bf5 {[%clk 0:02:07]} 16. gxh7+ {[%clk 0:02:13]}  Kh8 {[%clk 0:02:07]} 17. O-O-O {[%clk 0:02:09]}  b5 {[%clk 0:02:01]} 18. cxb5 {[%clk 0:02:06]}  a6 {[%clk 0:02:00]} 19. Nh3 {[%clk 0:01:47]}  axb5 {[%clk 0:01:57]} 20. g4 {[%clk 0:01:40]}  b4 {[%clk 0:01:55]} 21. gxf5 {[%clk 0:01:32]}  bxc3 {[%clk 0:01:53]} 22. Kb1 {[%clk 0:01:28]}  Be5 {[%clk 0:00:44]} 23. f4 {[%clk 0:00:53]}  Rxa2 {[%clk 0:00:37]} 24. Kxa2 {[%clk 0:00:12]}  Qa8+ {[%clk 0:00:36]} 25. Kb1 {[%clk 0:00:10]}  Rb8 {[%clk 0:00:19]} 26. Ng5 {[%clk 0:00:09]}  Nb3 {[%clk 0:00:09]} 27. Nf7+ {[%clk 0:00:07]}  Kg7 {[%clk 0:00:09]} 28. Qxb3 {[%clk 0:00:06]}  Rxb3 {[%clk 0:00:09]} 29. h8=Q+ {[%clk 0:00:06]}  Qxh8 {[%clk 0:00:10]} 30. Rdg1+ {[%clk 0:00:01]}  Kxf7 {[%clk 0:00:09]} 31. Rxh8 {[%clk 0:00:01]}  Rxb2+ {[%clk 0:00:09]} 32. Kc1 {[%clk 0:00:02]}  Bxf4+ {[%clk 0:00:08]} 33. Kd1 {[%clk 0:00:01]}  c2+ {[%clk 0:00:08]} 34. Ke1 {[%clk 0:00:01]}  c1=Q+ {[%clk 0:00:09]} 0-1


[Site "https://www.chess.com"]